Cogmind - Beta 11.1 @@@ ROGUE MODE // 2022.07.03 @ 21:28:50 Player: Roadie Result: Destroyed by D-53 Grenadier with Mini Grenade Launcher Performance ------------- Evolutions (0) 0 Regions Visited (2) 400 Robots Destroyed (14) 70 Value Destroyed (492) 492 Prototype IDs (2) 40 Alien Tech Used (0) 0 Bonus (0) 0 TOTAL SCORE: 1002 Bonus ------- None Cogmind --------- Core Integrity 0/250 Matter 274/300 Energy 250/250 System Corruption 0% Temperature Cool (0) Movement Walking (190) Ox1 Location -10/Mines Parts ------- > --- POWER (1) -------- Ion Engine > --- PROPULSION (2) --- Aluminum Leg > --- UTILITY (2) ------ Heat Sink Medium Storage Unit > --- WEAPON (2) ------- Small Laser > --- INVENTORY (10) --- Heat Sink Heat Sink Small Storage Unit Medium Matter Pod (76) Targeting Computer Small Laser Particle Gun Grenade Launcher Datajack Peak State ------------ > --- POWER ------------ Light Nuclear Core > --- PROPULSION ------- Aluminum Leg Aluminum Leg > --- UTILITY ---------- Medium Storage Unit Signal Interpreter > --- WEAPON ----------- Particle Gun Particle Gun > --- INVENTORY -------- Light Ion Engine Aluminum Leg Flight Unit Heat Sink Small Storage Unit Medium Matter Pod Targeting Computer Assault Rifle Grenade Launcher Datajack [Rating: 12] Favorites ----------- Power Light Nuclear Core Engine Light Ion Engine Power Core Light Nuclear Core Propulsion Aluminum Leg Leg Aluminum Leg Utility Medium Storage Unit Device Heat Sink Storage Medium Storage Unit Processor Signal Interpreter Weapon Assault Rifle Energy Gun Particle Gun Ballistic Gun Assault Rifle Ballistic Cannon Light Cannon Special Melee Weapon Datajack Build | -11 -10 -10 ------- Run | Scr Mat Min Slots Evolved . | . . . Power . | . . . Propulsion . | . . . Utility . | . . . Weapon . | . . . Parts Attached 31 | 5 12 14 Power 5 | 1 3 1 Engine 3 | 1 1 1 Core 2 | . 2 . Reactor . | . . . Propulsion 11 | 2 3 6 Treads . | . . . Leg 11 | 2 3 6 Wheel . | . . . Hover . | . . . Flight . | . . . Utility 5 | . 4 1 Device 2 | . 1 1 Storage 2 | . 2 . Processor 1 | . 1 . Hackware . | . . . Protection . | . . . Artifact . | . . . Weapon 10 | 2 2 6 Energy Gun 5 | . . 5 Energy Cannon . | . . . Ballistic Gun 3 | 2 1 . Ballistic Cannon 1 | . . 1 Launcher . | . . . Special Weapon . | . . . Impact Weapon . | . . . Slashing Weapon . | . . . Piercing Weapon . | . . . Special Melee Weapon 1 | . 1 . Unidentified Prototypes . | . . . Parts Lost 7 | . . 7 Power 1 | . . 1 Propulsion 3 | . . 3 Utility . | . . . Weapon 3 | . . 3 Highest Loss Streak 4 | . . 4 To Critical Strikes . | . . . Average Slot Usage (%) 98 | . 97 98 Engine 6 | . 9 4 Core 7 | . 4 9 Leg 27 | . 28 27 Device 3 | . 1 3 Storage 15 | . 17 14 Processor 8 | . 6 10 Energy Gun 14 | . . 25 Ballistic Gun 12 | . 27 . Ballistic Cannon 1 | . . 1 Naked Turns . | . . . Heaviest Build 21 | 7 19 21 Greatest Support 20 | 20 20 20 Greatest Overweight (x) 6 | . . 6 Average Overweight (x) . | . . . Largest Inventory Capacity 10 | 5 10 10 Average Capacity 9 | 5 9 10 Most Carried 10 | 4 10 10 Average Carried 7 | 2 7 7 Final Capacity 10 | 5 10 10 Final Carried 9 | 4 9 9 Class Distribution -------------------- 57% | Scavenger-Mutant 42% | Mutant Dominant Class ---------------- Mutant | -10/Materials Scavenger-Mutant | -10/Mines Resources | -11 -10 -10 ----------- Run | Scr Mat Min Matter Collected 848 | 262 215 371 Remotely 11 | . 11 . Salvage Created 546 | 45 250 251 Parts 27 | 1 12 14 Haulers Intercepted . | . . . Recyclers Shooed . | . . . Parts Field Recycled . | . . . Retrieved Matter . | . . . Parts Self-Destructed . | . . . Prevented . | . . . Kills | -11 -10 -10 ------- Run | Scr Mat Min Combat Hostiles Destroyed 12 | 1 5 6 Guns 12 | 1 5 6 Classes Destroyed 2 | 1 1 . Watcher 2 | . 2 . Grunt 12 | 1 5 6 Best Kill Streak 2 | 1 2 2 Combat Bots Only 2 | 1 2 2 Max Kills in Single Turn 1 | 1 1 1 Gunslinging . | . . . Exploded . | . . . Melee . | . . . Uniques/NPCs Destroyed . | . . . Combat | -11 -10 -10 -------- Run | Scr Mat Min Damage Taken 1228 | 12 280 936 Core 266 | . 43 223 Absorbed by Shields . | . . . Core Remaining (%) 100 | 100 . . Volleys Fired 51 | 2 22 27 Largest 2 | 2 2 2 Hottest 130 | 40 40 130 Shots Fired 96 | 4 43 49 Gun 95 | 4 43 48 Cannon 1 | . . 1 Launcher . | . . . Special . | . . . Kinetic 58 | 4 43 11 Thermal 38 | . . 38 Explosive . | . . . Electromagnetic . | . . . Robot Hit Streak 10 | 1 9 10 Robot Miss Streak 4 | 2 4 3 Penetration Max . | . . . Secondary Targets 4 | . 2 2 Max Gunslinging Chain 1 | . 1 1 Shots Hit Robots 58 | 2 27 29 Core Hits 22 | 2 8 12 Critical Kills 1 | . 1 . Critical Parts Destroyed . | . . . Critical Strikes 1 | . 1 . Destroy 1 | . 1 . Melee Attacks 3 | . 3 . Impact . | . . . Slashing . | . . . Piercing . | . . . Sneak Attacks . | . . . Combat Hostiles . | . . . Follow-up Attacks . | . . . Damage Inflicted 761 | 27 301 433 Guns 761 | 27 301 433 Cannons . | . . . Explosions . | . . . Melee . | . . . Ramming . | . . . Kinetic 429 | 27 301 101 Thermal 332 | . . 332 Explosive . | . . . Electromagnetic . | . . . Impact . | . . . Slashing . | . . . Piercing . | . . . Highest Corruption . | . . . Average Corruption . | . . . Corruption Purged . | . . . Corruption Blocked . | . . . Overload Shots . | . . . Overflow Damage . | . . . Projectiles . | . . . Explosions . | . . . Melee . | . . . Knockbacks . | . . . Impact . | . . . Kinetic . | . . . Secondary . | . . . Self-Inflicted Damage . | . . . Shots . | . . . Rammed . | . . . Targets Rammed . | . . . Kicked . | . . . Crushed . | . . . Highest Temperature 653 | . 9 653 Average Temperature 243 | . 2 271 Received Heat Transfer 465 | 6 159 300 Effects 26 | . . 26 Shutdowns 5 | . . 5 Matter Decay 5 | . . 5 Short Circuit 2 | . . 2 Damage (minor) 4 | . . 4 Damage (major) 9 | . . 9 Damage (core) 1 | . . 1 Siege Activations . | . . . Robots Corrupted . | . . . Combat Hostiles . | . . . Parts Fried . | . . . Impact Corruptions . | . . . Robots Melted . | . . . Combat Hostiles . | . . . Parts Melted 1 | . . 1 Heat Transferred 777 | . . 777 Parts Sabotaged . | . . . Parts Stolen . | . . . Parts Stripped . | . . . Power Chain Reactions . | . . . Missiles Intercepted . | . . . Alert | -11 -10 -10 ------- Run | Scr Mat Min Peak Influence 130 | 20 130 125 Initial 50 | . 13 50 Average 48 | 3 39 61 Maximum Alert Level . | . . . Low Security (%) 100 | 100 100 100 Level 1 . | . . . Level 2 . | . . . Level 3 . | . . . Level 4 . | . . . Level 5 . | . . . High Security . | . . . Max Security . | . . . Squads Dispatched 2 | . 2 . Investigation . | . . . Extermination . | . . . Reinforcement 2 | . 2 . Assault . | . . . Garrison . | . . . Intercept . | . . . Searches Triggered . | . . . Construction Impeded . | . . . Haulers Reinforced . | . . . Active Scanning Responses . | . . . Cargo Convoy Interrupts . | . . . Stealth | -11 -10 -10 --------- Run | Scr Mat Min Distress Signals . | . . . Communications Jammed . | . . . Distress Signals . | . . . Times Spotted 33 | 1 11 21 Peak Tracking Total 13 | 1 3 13 Tactical Retreats 3 | . 1 2 Traps | -11 -10 -10 ------- Run | Scr Mat Min Traps Triggered . | . . . Indirectly . | . . . Trap Hack Attempts . | . . . Triggered . | . . . Disarmed . | . . . Reprogrammed . | . . . Reused . | . . . Traps Extracted . | . . . Installed . | . . . Triggered . | . . . Machines | -11 -10 -10 ---------- Run | Scr Mat Min Machines Disabled . | . . . Max in Single Turn . | . . . Machines Sabotaged . | . . . Garrisons Compromised . | . . . Overloaded Fab Kills . | . . . Hacking | -11 -10 -10 --------- Run | Scr Mat Min Machines Accessed 4 | . 3 1 Terminals 3 | . 2 1 Fabricators . | . . . Repair Stations . | . . . Recycling Units 1 | . 1 . Scanalyzers . | . . . Garrison Access . | . . . Total Hacks 9 | . 7 2 Successful 6 | . 5 1 Failed 3 | . 2 1 Catastrophic . | . . . Database Lockouts . | . . . Manual . | . . . Terminals 8 | . 6 2 Fabricators . | . . . Repair Stations . | . . . Recycling Units 1 | . 1 . Scanalyzers . | . . . Garrison Access . | . . . Terminal Hacks 5 | . 4 1 Record 2 | . 2 . Prototype ID Bank 1 | . 1 . Unreport Threat 1 | . 1 . Dispatch Records 1 | . . 1 Fabricator Hacks . | . . . Repair Station Hacks . | . . . Recycling Unit Hacks 1 | . 1 . Retrieve Components 1 | . 1 . Scanalyzer . | . . . Garrison Access Hacks . | . . . Unauthorized Hacks . | . . . Terminals . | . . . Fabricators . | . . . Repair Stations . | . . . Recycling Units . | . . . Scanalyzers . | . . . Garrison Access . | . . . Data Cores Recovered . | . . . Used . | . . . Hacking Detections 3 | . 2 1 Full Trace Events . | . . . Feedback Events . | . . . Feedback Blocked . | . . . Robot Schematics Acquired . | . . . Robots Built . | . . . Authchips . | . . . Time . | . . . Total Robot Build Rating . | . . . Part Schematics Acquired . | . . . Parts Built . | . . . Authchips . | . . . Time . | . . . Total Part Build Rating . | . . . Parts Repaired . | . . . Time . | . . . Parts Recycled . | . . . Recycled Matter . | . . . Retrieved Matter . | . . . Retrieved Components 7 | . 7 . Parts Scanalyzed . | . . . Part Schematics Acquired . | . . . Parts Damaged . | . . . Bothacking | -11 -10 -10 ------------ Run | Scr Mat Min Used RIF Installer . | . . . Robots Hacked 1 | . 1 . Non-combat . | . . . Combat 1 | . 1 . Robot Hacks Applied 1 | . 1 . parse_system 1 | . 1 . Relay Couplers Released . | . . . Fabnet Peak Effective % . | . . . Robots Rewired . | . . . Allies Hacked . | . . . Hacks Repelled . | . . . Allies | -11 -10 -10 -------- Run | Scr Mat Min Total Allies . | . . . Largest Group . | . . . Highest-Rated Group . | . . . Highest-Rated Ally . | . . . Total Orders . | . . . Ally Attacks . | . . . Total Damage . | . . . Kills . | . . . Allies Corrupted . | . . . Allies Melted . | . . . Intel | -11 -10 -10 ------- Run | Scr Mat Min Robot Analysis Total . | . . . Derelict Logs Recovered 1 | . . 1 Drone Launches . | . . . Drone Recoveries . | . . . Exploration | -11 -10 -10 ------------- Run | Scr Mat Min Turns Passed 1790 | 117 712 961 Spaces Moved 1114 | 91 502 521 Core 21 | 17 . 4 Treads . | . . . Legs 1093 | 74 502 517 Wheels . | . . . Hover . | . . . Flight . | . . . Fastest Speed 50 | 50 120 120 Average Speed 138 | 106 120 162 Slowest Speed 350 | 120 120 350 Overloaded Moves . | . . . Propulsion Burnouts . | . . . Robots Hopped . | . . . Cave-ins Triggered . | . . . Exploration Rate (%) 48 | 7 58 79 Regions Visited 2 Branch Regions 1 Pre-discovered Areas . | . . . Known Exits Taken 1 | . 1 . Unknown Exits Taken 1 | 1 . . Scrap Searched 2 | . . 2 Spaces Dug . | . . . Terrain Destroyed . | . . . Melee . | . . . Projectile . | . . . AOE . | . . . Terrain Rammed . | . . . Walls Destroyed . | . . . Machines Disabled . | . . . Actions | -11 -10 -10 --------- Run | Scr Mat Min Total 1258 | 106 566 586 Wait 5 | . 5 . Move 1112 | 90 501 521 Hop . | . . . Pick Up 39 | 9 15 15 Fast Attach . | . . . Attach 12 | 5 2 5 Detach . | . . . Swap 19 | . 10 9 Drop 17 | . 8 9 Fire 51 | 2 22 27 Melee 3 | . 3 . Ram . | . . . Kick . | . . . Crush . | . . . Escape Stasis . | . . . Rewire . | . . . Trap . | . . . Miscellaneous . | . . . Route ------- -11/Scrapyard -10/Materials (discovered 3 exits: *Mat / *Min x2) -10/Mines (discovered 2 exits: *Mat x2) History --------- Turn | Location | Event 2 | -11/Scrapyard | Met Revision 17 85 | -11/Scrapyard | Discovered new exit (range 8) 118 | -11/Scrapyard | Entered Materials 303 | -10/Materials | Build established: Mutant 314 | -10/Materials | Discovered new exit (range 16) 401 | -10/Materials | Discovered new exit (range 16) 486 | -10/Materials | Discovered new exit (range 16) 506 | -10/Materials | Identified exit to Materials 829 | -10/Materials | Identified exit to Mines 830 | -10/Materials | Entered Mines 852 | -10/Mines | Met a Derelict bent on vengeance 1069 | -10/Mines | Build established: Scavenger-Mutant 1457 | -10/Mines | Core integrity fell below 50% 1510 | -10/Mines | Lost 4 parts (1p2n1w) 1594 | -10/Mines | Discovered exit to Materials (range 7) 1666 | -10/Mines | Learned 2 Materials zone layouts 1673 | -10/Mines | Discovered exit to Materials (range 10) 1756 | -10/Mines | Assembled infested the area 1761 | -10/Mines | Assisted by a Guerilla fighting off Assembled 1774 | -10/Mines | Core integrity fell below 20% 1791 | -10/Mines | Destroyed by D-53 Grenadier with Mini Grenade Launcher Last Messages --------------- K-01 Serf collects debris. D-53 Grenadier knocked back. D-53 Grenadier destroyed. as-79401 destroyed. as-00931 destroyed. as-01885 destroyed. U-05 Engineer lays Concrete. K-01 Serf collects debris. Aluminum Leg destroyed. U-05 Engineer lays Concrete. as-11578 sneak attacks. K-01 Serf destroyed. Acquired 84 matter. Lgt. Cannon destroyed. U-05 Engineer builds a Wall. The unstable cave ceiling collapses. as-47640 destroyed. U-05 Engineer builds a Wall. as-11578 destroyed. as-96839 destroyed. Map ----- +----------------------------------------------------+ | ???????????????????????????????? ???????? | | ??????????????????????????????? ??????? | | ??????????????????????????????? ??????? | | ??????????????????????????????? #??????? | | ??????????????????????????????? ##?????? | | ???????????????????????????????? ###???? | | ???????????????????????????????? ##??? | | ???????????????????????????????? ##?? | | ?????#????????????????????????## #?? | | ???? ???????????????????##### % #?? | | #?????????????????## # #?? | | ###?????????????## #??? | | #??? #####????????## #???? | | ???? ?????????# %=#????? | | ???? ??????????# #????? | | ????? #???????????# #????? | | ????? #????????????## ##????? | | ?????# #??????????????# # #?????? | | ????## #??????????????# = # #?????? | | #???# #??????????????# %=d### #?????? | | ##?## #??????????????## ## #?????? | | ### ########???????## *= # ###???? | | #?????### %